fUSD/lending_fUSD_20250724
["ID","MTS","AMOUNT","RATE_DAILY","PERIOD"]
[374598135,1753369836164,-1040.59281755,0.00035115,5]
[374598136,1753369836173,-160.07381768,0.00035136,15]
[374598137,1753369836183,-200.0,0.00035155,120]
[374598138,1753369836194,-150.0,0.00035158,7]
[374598139,1753369836205,-4268.05305897,0.00035161,2]
[374598140,1753369836215,-1768.0,0.00035168,2]
[374598141,1753369836224,-800.0,0.00035199,7]
[374598142,1753369836233,-721.63590213,0.00035214,2]
[374598143,1753369836244,-150.0,0.00035219,2]
[374598144,1753369836253,-160.07381768,0.00035243,15]
[374598145,1753369836265,-17328.9901915,0.0003528,3]
[374598146,1753369836275,-1237.0,0.0003529,2]
[374598147,1753369836286,-4268.05305897,0.00035292,2]
[374598148,1753369836296,-200.0,0.00035298,2]
[374598149,1753369836305,-459.31,0.00035329,2]
[374598150,1753369836315,-160.07381768,0.00035351,15]
[374598151,1753369836324,-200.0,0.00035375,2]
[374598152,1753369836334,-200.0,0.00035389,2]
[374598153,1753369836343,-7000.0,0.0003539,2]
[374598154,1753369836352,-855.2,0.00035394,2]
[374598155,1753369836362,-150.0,0.00035419,2]
[374598156,1753369836372,-4268.05305897,0.00035422,2]
[374598157,1753369836382,-150.0,0.00035424,2]
[374598158,1753369836392,-721.63590213,0.00035431,2]
[374598159,1753369836403,-1000.0,0.00035438,2]
[374598160,1753369836413,-160.07381768,0.00035459,15]
[374598161,1753369836423,-150.0,0.00035472,2]
[374598162,1753369836434,-359.98644457,0.00035486,32]
[374598163,1753369836444,-1768.0,0.00035516,2]
[374598164,1753369836453,-150.0,0.00035543,2]
[374598165,1753369836462,-152.7,0.0003555,2]
[374598166,1753369836471,-4268.05305897,0.00035553,2]
[374598167,1753369836481,-150.0,0.00035554,2]
[374598168,1753369836490,-500.0,0.00035558,120]
[374598169,1753369836500,-150.0,0.0003556,2]
[374598170,1753369836510,-941.9911,0.00035562,2]
[374598171,1753369836525,-1000.0,0.00035562,2]
[374598172,1753369836535,-328.23769459,0.00035566,9]
[374598173,1753369836545,-160.07381768,0.00035567,15]
[374598174,1753369836555,-17328.9901915,0.0003561,3]
[374598175,1753369836565,-328.23769458,0.0003561,9]
[374598176,1753369836576,-200.0,0.00035616,120]
[374598177,1753369836586,-150.0,0.00035617,2]
[374598178,1753369836596,-500.0,0.00035617,2]
[374598179,1753369836606,-150.0,0.00035617,2]
[374598180,1753369836616,-150.0,0.00035617,2]
[374598181,1753369836626,-150.0,0.00035617,2]
[374598182,1753369836637,-151.08563463,0.00035617,2]
[374598183,1753369836647,-150.0,0.00035617,2]
[374598184,1753369836658,-500.0,0.00035617,2]
[374598185,1753369836668,-200.0,0.00035617,2]
[374598186,1753369836679,-150.0,0.00035617,2]
[374598187,1753369836689,-150.0,0.00035617,2]
[374598188,1753369836699,-150.0,0.00035617,2]
[374598189,1753369836710,-500.0,0.00035617,2]
[374598190,1753369836720,-241.43258927,0.00035617,2]
[374598191,1753369836731,-150.0,0.00035617,2]
[374598192,1753369836741,-150.0,0.00035617,2]
[374598193,1753369836752,-150.0,0.00035617,2]
[374598194,1753369836766,-150.0,0.00035617,2]
[374598195,1753369836776,-150.0,0.00035617,2]
[374598196,1753369836786,-150.0,0.00035617,2]
[374598197,1753369836796,-150.0,0.00035617,2]
[374598198,1753369836805,-7000.0,0.0003562,2]
[374598199,1753369836815,-151.0,0.00035634,7]
[374598200,1753369836826,-151.0,0.00035634,7]
[374598201,1753369836836,-151.0,0.00035634,7]
[374598202,1753369836846,-17328.9901915,0.00035639,3]
[374598203,1753369836856,-12965.7129,0.00035646,120]
[374598204,1753369836866,-721.63590213,0.00035647,2]
[374598205,1753369836876,-25173.213,0.00035649,2]
[374598206,1753369836886,-328.23769458,0.00035654,9]
[374598207,1753369836896,-51986.9705744,0.00035656,3]
[374598208,1753369836906,-44310.4543384,0.00035656,3]
[374598209,1753369836916,-5000.0,0.00035659,2]
[374598210,1753369836926,-3598.134192,0.00035663,7]
[374598211,1753369836936,-151.57525313,0.00035664,2]
[374598212,1753369836946,-1400.0,0.00035666,7]
[374598213,1753369836955,-1400.0,0.00035666,7]
[374598214,1753369836965,-1400.0,0.00035666,7]
[374598215,1753369836975,-1400.0,0.00035666,7]
[374598216,1753369836984,-800.0,0.00035666,7]
[374598217,1753369836993,-1400.0,0.00035666,7]
[374598218,1753369837002,-800.0,0.00035666,7]
[374598219,1753369837013,-1400.0,0.00035666,7]
[374598220,1753369837025,-800.0,0.00035666,7]
[374598221,1753369837035,-1400.0,0.00035666,7]
[374598222,1753369837045,-1400.0,0.00035666,7]
[374598223,1753369837055,-1400.0,0.00035666,7]
[374598224,1753369837064,-800.0,0.00035666,7]
[374598225,1753369837074,-800.0,0.00035666,7]
[374598226,1753369837084,-1400.0,0.00035666,7]
[374598227,1753369837094,-800.0,0.00035666,7]
[374598228,1753369837105,-1400.0,0.00035666,7]
[374598229,1753369837115,-500.0,0.00035666,7]
[374598230,1753369837125,-1400.0,0.00035666,7]
[374598231,1753369837135,-800.0,0.00035666,7]
[374598233,1753369837145,-500.0,0.00035666,7]
[374598234,1753369837155,-700.0,0.00035666,7]
[374598235,1753369837165,-1400.0,0.00035666,7]
[374598236,1753369837175,-800.0,0.00035666,7]
[374598237,1753369837185,-803.48324592,0.00035666,7]
[374598238,1753369837195,-700.0,0.00035666,7]
[374598239,1753369837209,-1400.0,0.00035666,7]
[374598240,1753369837219,-800.0,0.00035666,7]
[374598241,1753369837229,-700.0,0.00035666,7]
[374598242,1753369837239,-1400.0,0.00035666,7]
[374598243,1753369837251,-800.0,0.00035666,7]
[374598244,1753369837261,-1400.0,0.00035666,7]
[374598245,1753369837273,-800.0,0.00035666,7]
[374598246,1753369837285,-700.0,0.00035666,7]
[374598247,1753369837295,-500.0,0.00035666,7]
[374598248,1753369837305,-800.0,0.00035666,7]
[374598249,1753369837315,-700.0,0.00035666,7]
[374598250,1753369837326,-800.0,0.00035666,7]
[374598251,1753369837336,-1400.0,0.00035666,7]
[374598253,1753369837346,-700.0,0.00035666,7]
[374598254,1753369837356,-1400.0,0.00035666,7]
[374598255,1753369837366,-800.0,0.00035666,7]
[374598256,1753369837376,-700.0,0.00035666,7]
[374598257,1753369837387,-1400.0,0.00035666,7]
[374598258,1753369837397,-800.0,0.00035666,7]
[374598260,1753369837407,-700.0,0.00035666,7]
[374598261,1753369837417,-1400.0,0.00035666,7]
[374598262,1753369837426,-800.0,0.00035666,7]
[374598264,1753369837436,-1400.0,0.00035666,7]
[374598266,1753369837446,-800.0,0.00035666,7]
[374598268,1753369837455,-700.0,0.00035666,7]
[374598270,1753369837465,-1400.0,0.00035666,7]
[374598272,1753369837475,-800.0,0.00035666,7]
[374598273,1753369837485,-700.0,0.00035666,7]
[374598274,1753369837496,-1400.0,0.00035666,7]
[374598276,1753369837506,-800.0,0.00035666,7]
[374598277,1753369837519,-700.0,0.00035666,7]
[374598279,1753369837529,-1400.0,0.00035666,7]
[374598280,1753369837539,-800.0,0.00035666,7]
[374598281,1753369837549,-700.0,0.00035666,7]
[374598282,1753369837559,-1400.0,0.00035666,7]
[374598283,1753369837569,-700.0,0.00035666,7]
[374598284,1753369837579,-800.0,0.00035666,7]
[374598285,1753369837589,-700.0,0.00035666,7]
[374598286,1753369837598,-1400.0,0.00035666,7]
[374598287,1753369837608,-800.0,0.00035666,7]
[374598288,1753369837618,-700.0,0.00035666,7]
[374598289,1753369837628,-1400.0,0.00035666,7]
[374598290,1753369837638,-800.0,0.00035666,7]
[374598291,1753369837648,-700.0,0.00035666,7]
[374598292,1753369837658,-1400.0,0.00035666,7]
[374598293,1753369837668,-800.0,0.00035666,7]
[374598294,1753369837678,-700.0,0.00035666,7]
[374598295,1753369837688,-1817.55171074,0.00035666,7]
[374598296,1753369837698,-800.0,0.00035666,7]
[374598297,1753369837708,-700.0,0.00035666,7]
[374598298,1753369837719,-800.0,0.00035666,7]
[374598299,1753369837729,-1114.4481259,0.00035666,7]
[374598300,1753369837740,-700.0,0.00035666,7]
[374598301,1753369837750,-700.0,0.00035666,7]
[374598302,1753369837760,-700.0,0.00035666,7]
[374598303,1753369837772,-700.0,0.00035666,7]
[374598304,1753369837782,-700.0,0.00035666,7]
[374598305,1753369837793,-700.0,0.00035666,7]
[374598306,1753369837803,-700.0,0.00035666,7]
[374598307,1753369837814,-1091.40568156,0.00035666,7]
[374598308,1753369837824,-500.0,0.00035673,5]
[374598309,1753369837834,-507.13502958,0.00035673,5]
[374598310,1753369837844,-459.64798921,0.00035673,5]
[374598311,1753369837854,-503.10552444,0.00035673,5]
[374598312,1753369837865,-500.0,0.00035673,5]
[374598313,1753369837875,-609.81847879,0.00035673,5]
[374598314,1753369837886,-286.56087082,0.00035674,2]
[374598315,1753369837897,-286.5608708,0.00035674,2]
[374598316,1753369837907,-286.5608708,0.00035674,2]
[374598317,1753369837919,-286.5608708,0.00035675,2]
[374598318,1753369837929,-286.5608708,0.00035675,2]
[374598319,1753369837940,-160.07381768,0.00035675,15]
[374598320,1753369837950,-286.5608708,0.00035675,2]
[374598321,1753369837960,-151.62491514,0.00035683,2]
[374598322,1753369837970,-200.0,0.00035685,7]
[374598323,1753369837980,-20761.78165929,0.0003569,3]
[374598324,1753369838029,-13896.19872361,0.0003569,3]
[374598325,1753369838038,-29540.3028922,0.0003569,3]
[374598326,1753369838048,-393.0,0.00035699,2]
[374598327,1753369838058,-152.0,0.000357,120]
[374598328,1753369838068,-300.0,0.000357,12]
[374598329,1753369838078,-1000.0,0.000357,7]
[374598330,1753369838088,-60000.0,0.000357,2]
[374598331,1753369838098,-618.0,0.0003573,120]
[374598332,1753369838108,-618.0,0.0003573,120]
[374598333,1753369838118,-166.13,0.00035734,120]
[374598334,1753369838127,-388.0,0.00035734,120]
[374598335,1753369838137,-388.0,0.00035734,120]
[374598336,1753369838147,-14770.1514461,0.00035734,3]
[374598337,1753369838158,-167.4904581,0.00035736,2]
[374598338,1753369838168,-17328.9901915,0.00035737,3]
[374598339,1753369838178,-14770.1514461,0.00035737,3]
[374598340,1753369838188,-167.4904581,0.00035739,2]
[374598341,1753369838198,-167.4904581,0.00035739,2]
[374598342,1753369838212,-167.4904581,0.00035739,2]
[374598343,1753369838221,-167.4904581,0.00035739,2]
[374598344,1753369838231,-167.4904581,0.00035739,2]
[374598345,1753369838242,-500.0,0.00035739,120]
[374598346,1753369838252,-618.0,0.0003574,120]
[374598347,1753369838264,-618.0,0.0003574,120]
[374598348,1753369838274,-618.0,0.0003574,120]
[374598349,1753369838285,-620.47,0.0003574,120]
[374598350,1753369838296,-172.04885754,0.00035743,2]
[374598351,1753369838307,-150.5,0.00035744,120]
[374598352,1753369838318,-388.0,0.00035744,120]
[374598353,1753369838328,-388.0,0.00035744,120]
[374598354,1753369838344,-388.0,0.00035744,120]
[374598355,1753369838359,-395.82,0.00035744,120]
[374598356,1753369838370,-2149.14845719,0.00035745,30]
[374598357,1753369838386,-465.495,0.00035683,2]
[374598358,1753369838398,-454.39819062,0.00035683,2]
[374598359,1753369838411,-3348.15986835,0.00035683,2]
[374598360,1753369838421,-5591.60137456,0.00035745,30]
[374598361,1753369838433,-9940.92287717,0.00035745,30]
[374598362,1753369838445,-3452.33449821,0.00035745,30]
[374598363,1753369838455,-500.0,0.00035745,2]
[374598364,1753369838465,-500.0,0.00035745,2]
[374598365,1753369838475,-1027.7365,0.00035746,2]
[374598366,1753369838485,-399.0,0.00035747,30]
[374598367,1753369838495,-1927.19020782,0.00035747,2]
[374598368,1753369838507,-1259.71258801,0.00035747,2]
[374598369,1753369838523,-1792.28224117,0.00035747,2]
[374598370,1753369838535,-2020.814963,0.00035747,2]
[374598371,1753369838546,-350.88320056,0.00035749,2]
[374598372,1753369838558,-149.11679944,0.00035749,2]
[374598373,1753369838568,-500.0,0.00035749,2]
[374598374,1753369838579,-618.0,0.0003575,120]
[374598375,1753369838590,-618.0,0.0003575,120]
[374598376,1753369838602,-618.0,0.0003575,120]
[374598377,1753369838612,-618.0,0.0003575,120]
[374598378,1753369838623,-500.0,0.00035752,120]
[374598379,1753369838633,-500.0,0.00035753,120]
[374598409,1753369839014,-69315.9607658,0.00035753,3]
[374598411,1753369839026,-73850.7572306,0.00035753,3]
[374598413,1753369839036,-611.8141563,0.00035753,2]
[374598415,1753369839046,-150.0,0.00035753,7]
[374598417,1753369839057,-150.0,0.00035753,7]
[374598419,1753369839067,-465.69,0.00035753,2]
[374598421,1753369839077,-1760.24,0.00035753,2]
[374598423,1753369839087,-465.69,0.00035753,2]
[374598425,1753369839097,-464.52,0.00035753,2]
[374598427,1753369839108,-42516.03264786,0.00035754,3]
[374598429,1753369839120,-1499.69232599,0.00035754,3]
[374598432,1753369839133,-2042.596097,0.00035754,3]
[374598434,1753369839144,-556.56834493,0.00035754,3]
[374598436,1753369839157,-465.88844996,0.00035754,3]
[374598438,1753369839169,-3624.01055263,0.00035754,3]
[374598441,1753369839181,-1196.10826627,0.00035754,3]
[374598446,1753369839199,-1213.8,0.00035754,3]
[374598448,1753369839215,-1698.0,0.00035754,3]
[374598451,1753369839226,-638.70294892,0.00035754,3]
[374598453,1753369839238,-3674.99999998,0.00035754,3]
[374598456,1753369839251,-27518.55132366,0.00035754,3]
[374598458,1753369839260,-6276.91592805,0.00035754,3]
[374598460,1753369839280,-73635.51098419,0.00035754,3]
[374598462,1753369839293,-30923.5803014,0.00035754,3]
[374598465,1753369839305,-1131.79076611,0.00035754,3]
[374598486,1753369839508,-863.0,0.00027266,2]
[374598488,1753369839519,-320.402,0.00030266,2]
[374598489,1753369839530,-400.0,0.00035615,120]
[374598491,1753369839541,-150.0,0.00035617,2]
[374598492,1753369839553,-214.06380542,0.00035683,2]
[374598494,1753369839564,-3213.33865289,0.00035754,3]
[374598496,1753369839577,-658.47843359,0.00035754,3]
[374598498,1753369839593,-1657.714,0.00035754,3]
[374598500,1753369839607,-365.4294,0.00035754,3]
[374598502,1753369839619,-16271.61327098,0.00035754,3]
[374598504,1753369839631,-7471.6,0.00035754,3]
[374598507,1753369839643,-3829.15186,0.00035754,3]
[374598509,1753369839656,-1220.1497,0.00035754,3]
[374598511,1753369839668,-261.52156641,0.00035754,3]
[374598513,1753369839680,-3798.48178731,0.00035754,3]
[374598516,1753369839692,-1385.00494756,0.00035754,3]
[374598518,1753369839704,-13951.91118522,0.00035754,3]
[374598522,1753369839728,-2999.8383998,0.00035754,3]
[374598524,1753369839740,-485.96832249,0.00035754,3]
[374598528,1753369839776,-1776.80918,0.00035754,3]
[374598530,1753369839789,-1550.73238527,0.00035754,3]
[374598533,1753369839800,-264.79762295,0.00035754,3]
[374598535,1753369839814,-9853.14024092,0.00035754,3]
[374598537,1753369839825,-403.73199685,0.00035754,3]
[374598539,1753369839838,-587.0,0.00035754,3]
[374598542,1753369839860,-907.48308713,0.00035754,3]
[374598544,1753369839872,-4197.58099345,0.00035754,3]
[374598546,1753369839885,-76783.45101743,0.00035754,3]
[374598548,1753369839895,-150.5,0.00035754,120]
[374598550,1753369839906,-388.0,0.00035754,120]
[374598553,1753369839917,-388.0,0.00035754,120]
[374598555,1753369839928,-388.0,0.00035754,120]
[374598557,1753369839949,-388.0,0.00035754,120]
[374598559,1753369839970,-151.0,0.00035759,7]
[374598561,1753369839984,-151.0,0.00035759,7]
[374598563,1753369839994,-151.0,0.00035759,7]
[374598565,1753369840004,-500.0,0.00035759,30]
[374598567,1753369840014,-151.0,0.0003576,7]
[374598569,1753369840024,-151.0,0.0003576,7]
[374598571,1753369840034,-151.0,0.0003576,7]
[374598573,1753369840044,-193.616422,0.0003576,7]
[374598575,1753369840053,-151.0,0.0003576,7]
[374598577,1753369840063,-151.0,0.0003576,7]
[374598580,1753369840072,-207.856308,0.0003576,7]
[374598582,1753369840082,-151.0,0.0003576,7]
[374598583,1753369840092,-151.0,0.0003576,7]
[374598584,1753369840102,-500.0,0.00035762,2]
[374598585,1753369840112,-417.74,0.00035762,120]
[374598586,1753369840122,-500.0,0.00035762,2]
[374598587,1753369840131,-500.0,0.00035763,2]
[374598588,1753369840140,-500.0,0.00035763,2]
[374598589,1753369840151,-500.0,0.00035763,2]
[374598590,1753369840166,-501.913892,0.00035763,2]
[374598591,1753369840183,-150.0,0.00035763,120]
[374598592,1753369840194,-500.0,0.00035763,2]
[374598594,1753369840205,-500.0,0.00035763,2]
[374598596,1753369840217,-500.0,0.00035763,2]
[374598598,1753369840227,-500.0,0.00035763,2]
[374598600,1753369840238,-207.83316326,0.00035763,2]
[374598602,1753369840248,-996.15,0.00035763,120]
[374598605,1753369840258,-996.15,0.00035763,120]
[374598608,1753369840269,-954.64,0.00035763,120]
[374598610,1753369840279,-996.28176799,0.00035763,120]
[374598612,1753369840290,-954.64,0.00035763,120]
[374598614,1753369840300,-133461.47914426,0.00035763,2]
[374598616,1753369840310,-151.0,0.00035764,7]
[374598618,1753369840319,-151.0,0.00035764,7]
[374598620,1753369840329,-151.0,0.00035764,7]
[374598622,1753369840339,-151.0,0.00035764,7]
[374598624,1753369840349,-151.0,0.00035764,7]
[374598626,1753369840359,-151.0,0.00035764,7]
[374598628,1753369840369,-151.0,0.00035764,7]
[374598630,1753369840379,-151.0,0.00035764,7]
[374598632,1753369840389,-151.0,0.00035764,7]
[374598634,1753369840399,-151.0,0.00035764,7]
[374598636,1753369840409,-151.0,0.00035764,7]
[374598638,1753369840419,-151.0,0.00035764,7]
[374598640,1753369840429,-151.0,0.00035764,7]
[374598642,1753369840438,-151.0,0.00035764,7]
[374598645,1753369840449,-151.0,0.00035764,7]
[374598647,1753369840459,-151.0,0.00035764,7]
[374598649,1753369840469,-151.0,0.00035764,7]
[374598651,1753369840479,-151.0,0.00035764,7]
[374598653,1753369840490,-151.0,0.00035764,7]
[374598655,1753369840499,-151.0,0.00035764,7]
[374598657,1753369840509,-151.0,0.00035764,7]
[374598659,1753369840520,-201.454601,0.00035764,7]
[374598661,1753369840529,-151.0,0.00035764,7]
[374598663,1753369840539,-133461.47914426,0.00035764,2]
[374598665,1753369840549,-133461.47914426,0.00035764,2]
[374598667,1753369840559,-133461.47914426,0.00035764,2]
[374598669,1753369840569,-133461.47914426,0.00035764,2]
[374598671,1753369840579,-611.8141563,0.00035764,2]
[374598673,1753369840588,-611.8141563,0.00035764,2]
[374598675,1753369840598,-151.0,0.00035767,7]
[374598677,1753369840607,-218.549569,0.00035767,7]
[374598679,1753369840617,-218.549569,0.00035767,7]
[374598681,1753369840627,-218.549569,0.00035767,7]
[374598683,1753369840636,-218.549569,0.00035767,7]
[374598685,1753369840646,-218.549569,0.00035767,7]
[374598688,1753369840656,-218.549569,0.00035767,7]
[374598690,1753369840665,-218.549569,0.00035767,7]
[374598691,1753369840674,-218.549569,0.00035767,7]
[374598693,1753369840684,-218.549569,0.00035767,7]
[374598696,1753369840694,-218.549569,0.00035767,7]
[374598697,1753369840703,-218.549569,0.00035767,7]
[374598699,1753369840714,-218.549569,0.00035767,7]
[374598701,1753369840723,-218.549569,0.00035767,7]
[374598703,1753369840733,-218.549569,0.00035767,7]
[374598706,1753369840742,-218.549569,0.00035767,7]
[374598707,1753369840753,-218.549569,0.00035767,7]
[374598710,1753369840764,-218.549569,0.00035767,7]
[374598712,1753369840775,-218.549572,0.00035767,7]
[374598714,1753369840793,-151.0,0.00035767,7]
[374598716,1753369840802,-151.0,0.00035767,7]
[374598718,1753369840811,-151.870337,0.00035767,7]
[374598720,1753369840821,-151.0,0.00035767,7]
[374598722,1753369840840,-151.0,0.00035767,7]
[374598724,1753369840851,-151.0,0.00035767,7]
[374598726,1753369840865,-151.0,0.00035767,7]
[374598728,1753369840875,-151.0,0.00035767,7]
[374598730,1753369840885,-151.0,0.00035767,7]
[374598732,1753369840894,-151.0,0.00035767,7]
[374598734,1753369840905,-151.0,0.00035767,7]
[374598736,1753369840917,-151.0,0.00035767,7]
[374598738,1753369840927,-176.219985,0.00035767,7]
[374598740,1753369840937,-500.0,0.00035773,5]
[374598742,1753369840947,-500.0,0.00035773,5]
[374598744,1753369840958,-508.76516942,0.00035773,5]
[374598746,1753369840968,-500.0,0.00035773,5]
[374598748,1753369840977,-483.60689228,0.00035773,5]
[374598750,1753369840987,-500.0,0.00035773,5]
[374598752,1753369840997,-504.83530612,0.00035773,5]
[374598754,1753369841007,-500.0,0.00035773,5]
[374598756,1753369841020,-50000.0,0.00035774,30]
[374598758,1753369841030,-50000.0,0.00035774,31]
[374598760,1753369841040,-50000.0,0.00035774,32]
[374598762,1753369841050,-50000.0,0.00035774,33]
[374598764,1753369841060,-50000.0,0.00035774,34]
[374598766,1753369841071,-2944.55371607,0.00035774,2]
[374598768,1753369841081,-577154.72063269,0.00035775,30]
[374598770,1753369841094,-700.0,0.00035775,30]
[374598773,1753369841107,-493626.59461464,0.00035775,30]
[374598775,1753369841118,-2665.0053848,0.00035775,30]
[374598778,1753369841135,-150.0,0.00035659,2]
[374598780,1753369841144,-823.37790478,0.00035775,30]
[374598825,1753369841582,-619.58535456,0.00035775,30]
[374598828,1753369841593,-2100.07079163,0.00035775,30]
[374598830,1753369841604,-460.66050008,0.00035775,30]
[374598832,1753369841615,-1285.904531,0.00035775,30]
[374598835,1753369841631,-150.0,0.00035599,2]
[374598837,1753369841640,-3819.41952457,0.00035775,30]
[374598936,1753369842509,-150.0,0.00035613,2]
[374598938,1753369842520,-59707.41375773,0.00035775,30]
[374598942,1753369842547,-4124.62885104,0.00035775,30]
[374599188,1753369845076,-591.39999995,0.00035775,30]
[374599189,1753369845093,-2159.249997,0.00035775,30]
[374599190,1753369845111,-3821.23488,0.00035775,30]
[374599280,1753369846010,-151.0,0.00021052,2]
[374599282,1753369846020,-1334.59496269,0.00035653,2]
[374599284,1753369846031,-1572.81307852,0.00035653,2]
[374599286,1753369846041,-107.95467795,0.00035775,30]
[374599289,1753369846052,-997.58,0.00035775,30]
[374599291,1753369846064,-3568.10178754,0.00035775,30]
[374599293,1753369846075,-2398.96,0.00035775,30]
[374599297,1753369846105,-460.0,0.00034986,120]
[374599299,1753369846115,-404.62199999,0.00035775,30]
[374599302,1753369846126,-509378.28273579,0.00035775,30]
[374599304,1753369846137,-1622.81214047,0.00035775,30]
[374599306,1753369846148,-4494.96244204,0.00035775,30]
[374599308,1753369846159,-5951.0,0.00035775,30]
[374599310,1753369846171,-807.33000298,0.00035775,30]
[374599315,1753369846209,-23559.61836028,0.00035775,30]
[374599330,1753369846359,-919.62765764,0.00035775,30]
[374599331,1753369846370,-374.29,0.00035775,30]
[374599334,1753369846386,-260.78,0.00033732,2]
[374599335,1753369846395,-5943.69541204,0.00035775,30]
[374600941,1753369979574,400.0,0.0002772,30]
[374600952,1753370410266,247.58384972,0.00028,120]
[374600954,1753370458568,276.64,0.00027492,120]
[374600962,1753370730288,107666.51481227,0.000199,2]
[374600963,1753370734341,920.21979431,0.0002739,120]
[374600965,1753370746722,151.45,0.00013699,2]
[374600966,1753370756204,759.19807339,0.0002739,120]
[374600977,1753370804817,635.12,0.00027397,120]
[374600995,1753370895337,565.32828258,0.00028,30]
[374600996,1753370915632,633.85783677,0.000199,120]
[374601001,1753370922546,166.08715528,0.00027397,120]
[374601002,1753370924916,522.18779341,0.0002739,120]
[374601004,1753370928554,210.27673281,0.00025,120]
[374601005,1753370949974,-312.97261374,0.000219,6]
[374601011,1753371031720,-167.74,0.00020318,2]
[374601012,1753371031731,-250.0,0.00020355,2]
[374601013,1753371031741,-152.55,0.00020392,2]
[374601014,1753371031751,-250.0,0.00020664,2]
[374601015,1753371031762,-350.71,0.0002081,2]
[374601016,1753371031776,-266.2896522,0.00020889,2]
[374601017,1753371031786,-162.7103478,0.0002091,2]
[374601018,1753371031798,-5564.6596522,0.0002091,2]
[374601019,1753371031808,-177.79318949,0.00021264,2]
[374601020,1753371031818,-300.0,0.00021364,2]
[374601021,1753371031828,-1200.0,0.00021364,2]
[374601022,1753371031838,-615.67814337,0.00021365,2]
[374601023,1753371031850,-584.32185663,0.00021365,2]
[374601024,1753371031860,-302.54019334,0.000219,6]
[374601025,1753371031870,-300.0,0.00021918,2]
[374601026,1753371031881,-172.0,0.00022,2]
[374601027,1753371031891,-234.47812863,0.0002211,2]
[374601028,1753371031902,-300.0,0.0002235,2]
[374601029,1753371031912,-250.0,0.0002235,2]
[374601030,1753371031931,-2500.0,0.0002235,2]
[374601031,1753371031943,-300.0,0.0002235,2]
[374601032,1753371031956,-2500.0,0.0002235,2]
[374601033,1753371031969,-302.54019309,0.00022383,7]
[374601034,1753371031979,-544.87032021,0.000225,3]
[374601035,1753371031990,-180.10601631,0.00022572,2]
[374601036,1753371032001,-302.54019309,0.00022866,8]
[374601037,1753371032012,-1040.0,0.00022999,2]
[374601038,1753371032026,-69.57596516,0.00023,2]
[374601039,1753371032043,-923.42403484,0.00023,2]
[374601040,1753371032054,-429.16964129,0.00023,2]
[374601041,1753371032064,-5006.51591253,0.00023,2]
[374601042,1753371032077,-480.37901424,0.00023,2]
[374601043,1753371032089,-2575.14382685,0.00023,2]
[374601044,1753371032101,-7435.8002275,0.00023,2]
[374601045,1753371032115,-95.82148084,0.00023,2]
[374601047,1753371032125,-169.0,0.0002318,2]
[374601049,1753371032135,-443.02321912,0.0002334,2]
[374601051,1753371032147,-1191.1776,0.0002334,2]
[374601054,1753371032160,-45.79918088,0.0002334,2]
[374601056,1753371032169,-302.54019309,0.00023348,9]
[374601057,1753371032179,-340.0,0.00023681,2]
[374601058,1753371032189,-302.54019309,0.00023831,10]
[374601059,1753371032198,-5000.0,0.00024,5]
[374601061,1753371032208,-2019.07187089,0.00024,2]
[374601063,1753371032218,-302.54019309,0.00024314,10]
[374601064,1753371032228,-165.0,0.0002437,2]
[374601065,1753371032238,-302.54019309,0.00024797,11]
[374601067,1753371032248,-930.0,0.00025,5]
[374601069,1753371032257,-302.54019309,0.00025279,12]